[Event "Early-Titled-Tuesday-Blitz-March-19-2024"]
[Site "Chess.com"]
[Date "2024.03.19"]
[Round "4"]
[White "ZenBull"]
[Black "amanjazu"]
[Result "0-1"]
[WhiteElo "2286"]
[BlackElo "2527"]
[TimeControl "180+1"]
[EndTime "8:40:25 PDT"]
[Termination "amanjazu won by resignation"]

1. c4 {[%clk 0:02:59.8]} 1... e5 {[%clk 0:02:51.5]} 2. e3 {[%clk 0:02:58.2]}
2... Nc6 {[%clk 0:02:43.3]} 3. Nc3 {[%clk 0:02:58.3]} 3... g6 {[%clk 0:02:42.8]}
4. d3 {[%clk 0:02:56.5]} 4... Bg7 {[%clk 0:02:42.6]} 5. Nf3 {[%clk 0:02:56.9]}
5... d6 {[%clk 0:02:34.6]} 6. Be2 {[%clk 0:02:57]} 6... Nge7 {[%clk 0:02:35]} 7.
O-O {[%clk 0:02:57]} 7... O-O {[%clk 0:02:35.9]} 8. a3 {[%clk 0:02:56.4]} 8...
a5 {[%clk 0:02:35.4]} 9. Qc2 {[%clk 0:02:54.1]} 9... f5 {[%clk 0:02:35.1]} 10.
Rb1 {[%clk 0:02:48.9]} 10... h6 {[%clk 0:02:33.7]} 11. b4 {[%clk 0:02:48.4]}
11... axb4 {[%clk 0:02:33.2]} 12. axb4 {[%clk 0:02:49.3]} 12... Be6 {[%clk
0:02:31.1]} 13. b5 {[%clk 0:02:47.7]} 13... Na5 {[%clk 0:02:31.3]} 14. Bb2
{[%clk 0:02:44.5]} 14... g5 {[%clk 0:02:22.8]} 15. Nd2 {[%clk 0:02:42.5]} 15...
f4 {[%clk 0:02:20.6]} 16. exf4 {[%clk 0:02:34.1]} 16... exf4 {[%clk 0:02:18]}
17. Rfe1 {[%clk 0:02:31.1]} 17... Nf5 {[%clk 0:02:15.7]} 18. Nd5 {[%clk
0:02:25]} 18... Bxb2 {[%clk 0:01:59.1]} 19. Qxb2 {[%clk 0:02:21.5]} 19... c6
{[%clk 0:01:58.7]} 20. Nb4 {[%clk 0:02:11.5]} 20... Qf6 {[%clk 0:01:25]} 21.
Qxf6 {[%clk 0:02:08.3]} 21... Rxf6 {[%clk 0:01:25.9]} 22. bxc6 {[%clk 0:02:08]}
22... bxc6 {[%clk 0:01:19.9]} 23. Bf3 {[%clk 0:02:07.2]} 23... Nd4 {[%clk
0:01:18.2]} 24. Ne4 {[%clk 0:01:56.5]} 24... Rff8 {[%clk 0:00:49.6]} 25. Nxd6
{[%clk 0:01:52.3]} 25... Rad8 {[%clk 0:00:49.8]} 26. c5 {[%clk 0:01:44.4]} 26...
g4 {[%clk 0:00:49.1]} 27. Be4 {[%clk 0:01:41.2]} 27... f3 {[%clk 0:00:40.5]} 28.
Ra1 {[%clk 0:01:09.4]} 28... Nab3 {[%clk 0:00:39.4]} 29. Ra6 {[%clk 0:01:04.3]}
29... Nxc5 {[%clk 0:00:38.5]} 30. Ra5 {[%clk 0:00:50.6]} 30... Ndb3 {[%clk
0:00:38]} 31. Rxc5 {[%clk 0:00:47.8]} 31... Nxc5 {[%clk 0:00:38.9]} 32. Nc4
{[%clk 0:00:39.6]} 32... Bxc4 {[%clk 0:00:37.9]} 33. dxc4 {[%clk 0:00:37]} 33...
Nxe4 {[%clk 0:00:37.9]} 34. gxf3 {[%clk 0:00:35.7]} 34... gxf3 {[%clk
0:00:37.4]} 35. Nxc6 {[%clk 0:00:34.5]} 35... Rde8 {[%clk 0:00:33.7]} 36. Nd4
{[%clk 0:00:32.7]} 36... Nd2 {[%clk 0:00:28.7]} 37. Rc1 {[%clk 0:00:30.3]} 37...
Nxc4 {[%clk 0:00:26]} 38. Nxf3 {[%clk 0:00:28]} 38... Rxf3 {[%clk 0:00:26.9]}
39. Rxc4 {[%clk 0:00:27.4]} 39... Ref8 {[%clk 0:00:25.4]} 40. Rc2 {[%clk
0:00:26.4]} 40... Kg7 {[%clk 0:00:25.7]} 41. Kg2 {[%clk 0:00:26.6]} 41... Kg6
{[%clk 0:00:26.6]} 42. Rd2 {[%clk 0:00:26.8]} 42... R8f6 {[%clk 0:00:26.5]} 43.
Re2 {[%clk 0:00:27.1]} 43... R3f5 {[%clk 0:00:27.4]} 44. Rd2 {[%clk 0:00:27.5]}
44... Kh5 {[%clk 0:00:28.2]} 45. Re2 {[%clk 0:00:27.9]} 45... Kg4 {[%clk
0:00:28.6]} 46. Re4+ {[%clk 0:00:27.3]} 46... Rf4 {[%clk 0:00:29.1]} 47. Re2
{[%clk 0:00:27.6]} 47... h5 {[%clk 0:00:29.3]} 48. Rd2 {[%clk 0:00:27.5]} 48...
Rf3 {[%clk 0:00:28.3]} 49. Rd4+ {[%clk 0:00:26.5]} 49... R6f4 {[%clk 0:00:27.9]}
50. Rd2 {[%clk 0:00:26.1]} 50... h4 {[%clk 0:00:27.1]} 51. Rc2 {[%clk
0:00:22.1]} 51... h3+ {[%clk 0:00:27]} 52. Kf1 {[%clk 0:00:22.1]} 52... Re4
{[%clk 0:00:25.8]} 53. Rd2 {[%clk 0:00:21.3]} 53... Rc3 {[%clk 0:00:25.2]} 54.
Rd1 {[%clk 0:00:20.6]} 54... Kf3 {[%clk 0:00:23.7]} 55. Ra1 {[%clk 0:00:19.6]}
55... Rec4 {[%clk 0:00:22.4]} 0-1

[Event "Early-Titled-Tuesday-Blitz-March-19-2024"]
[Site "Chess.com"]
[Date "2024.03.19"]
[Round "4"]
[White "itsdsyr"]
[Black "UNSTOPPABLE_LEGEND"]
[Result "1-0"]
[WhiteElo "2253"]
[BlackElo "2495"]
[TimeControl "180+1"]
[EndTime "8:40:29 PDT"]
[Termination "itsdsyr won by resignation"]

1. d4 {[%clk 0:02:57.9]} 1... d5 {[%clk 0:02:56.8]} 2. c4 {[%clk 0:02:57.1]}
2... c6 {[%clk 0:02:56.5]} 3. Nf3 {[%clk 0:02:56.2]} 3... Nf6 {[%clk 0:02:57]}
4. Nc3 {[%clk 0:02:55.5]} 4... e6 {[%clk 0:02:54.1]} 5. e3 {[%clk 0:02:54]} 5...
Bd6 {[%clk 0:02:53.1]} 6. Bd3 {[%clk 0:02:52.2]} 6... dxc4 {[%clk 0:02:52.2]} 7.
Bxc4 {[%clk 0:02:52]} 7... Nbd7 {[%clk 0:02:52.4]} 8. O-O {[%clk 0:02:51.2]}
8... O-O {[%clk 0:02:52.4]} 9. Bd3 {[%clk 0:02:50.4]} 9... e5 {[%clk 0:02:51.9]}
10. dxe5 {[%clk 0:02:45.5]} 10... Nxe5 {[%clk 0:02:52.8]} 11. Nxe5 {[%clk
0:02:44.5]} 11... Bxe5 {[%clk 0:02:53.7]} 12. Qc2 {[%clk 0:02:45]} 12... h5
{[%clk 0:02:47.9]} 13. h3 {[%clk 0:02:39.4]} 13... Bc7 {[%clk 0:02:45]} 14. Rd1
{[%clk 0:02:35.3]} 14... Qe7 {[%clk 0:02:41.7]} 15. e4 {[%clk 0:02:32.4]} 15...
Be6 {[%clk 0:02:18.1]} 16. Be3 {[%clk 0:02:30.6]} 16... Rad8 {[%clk 0:02:11.2]}
17. f4 {[%clk 0:02:26]} 17... Bb6 {[%clk 0:02:00.4]} 18. Bxb6 {[%clk 0:01:44.4]}
18... axb6 {[%clk 0:02:01.3]} 19. Qf2 {[%clk 0:01:44.8]} 19... Qc5 {[%clk
0:01:45.9]} 20. Rac1 {[%clk 0:01:38.4]} 20... Qxf2+ {[%clk 0:01:40.2]} 21. Kxf2
{[%clk 0:01:39.3]} 21... b5 {[%clk 0:01:40.9]} 22. a3 {[%clk 0:01:38.1]} 22...
Nd7 {[%clk 0:01:33.1]} 23. b4 {[%clk 0:01:27.9]} 23... Nb6 {[%clk 0:01:31.7]}
24. Be2 {[%clk 0:01:24.8]} 24... Bb3 {[%clk 0:01:22.2]} 25. Rxd8 {[%clk
0:01:15.7]} 25... Rxd8 {[%clk 0:01:23.1]} 26. Ke3 {[%clk 0:01:15.9]} 26... f6
{[%clk 0:01:10]} 27. Rb1 {[%clk 0:01:04.9]} 27... Bf7 {[%clk 0:00:47.8]} 28. Rd1
{[%clk 0:00:58.1]} 28... Ra8 {[%clk 0:00:47.8]} 29. Ra1 {[%clk 0:00:48.8]} 29...
h4 {[%clk 0:00:45.8]} 30. e5 {[%clk 0:00:40.9]} 30... Bc4 {[%clk 0:00:32]} 31.
Bf3 {[%clk 0:00:36.8]} 31... fxe5 {[%clk 0:00:19.6]} 32. fxe5 {[%clk 0:00:36.4]}
32... Nd7 {[%clk 0:00:20.3]} 33. Kd4 {[%clk 0:00:25.5]} 33... Re8 {[%clk
0:00:17.8]} 34. Re1 {[%clk 0:00:23.4]} 34... Nf8 {[%clk 0:00:16]} 35. Bg4 {[%clk
0:00:20.6]} 35... b6 {[%clk 0:00:14.3]} 36. Ne4 {[%clk 0:00:17.4]} 36... Bd5
{[%clk 0:00:12]} 37. Nd6 {[%clk 0:00:14.8]} 37... Rd8 {[%clk 0:00:12.7]} 38. Re2
{[%clk 0:00:10.9]} 38... Bc4 {[%clk 0:00:12]} 39. Rf2 {[%clk 0:00:10]} 39...
Ne6+ {[%clk 0:00:10.4]} 40. Bxe6+ {[%clk 0:00:10]} 40... Bxe6 {[%clk 0:00:11.3]}
41. Rf4 {[%clk 0:00:10.5]} 41... Bd5 {[%clk 0:00:09.5]} 42. Rxh4 {[%clk
0:00:08.8]} 42... Bxg2 {[%clk 0:00:10.2]} 43. Rh5 {[%clk 0:00:07.3]} 43... Bd5
{[%clk 0:00:10.7]} 44. h4 {[%clk 0:00:07.1]} 44... Be6 {[%clk 0:00:11]} 45. Rg5
{[%clk 0:00:07.6]} 45... Ra8 {[%clk 0:00:11.2]} 46. Rg3 {[%clk 0:00:08.1]} 46...
Rxa3 {[%clk 0:00:11.5]} 47. Rxa3 {[%clk 0:00:07.7]} 1-0

[Event "Early-Titled-Tuesday-Blitz-March-19-2024"]
[Site "Chess.com"]
[Date "2024.03.19"]
[Round "4"]
[White "akanga001"]
[Black "bobo_panda"]
[Result "1/2-1/2"]
[WhiteElo "2021"]
[BlackElo "2343"]
[TimeControl "180+1"]
[EndTime "8:40:30 PDT"]
[Termination "Game drawn - insufficient material"]

1. d4 {[%clk 0:02:51.1]} 1... Nf6 {[%clk 0:02:59.4]} 2. c4 {[%clk 0:02:50.1]}
2... e6 {[%clk 0:02:59.7]} 3. Nc3 {[%clk 0:02:49.7]} 3... Bb4 {[%clk 0:02:59.5]}
4. Qc2 {[%clk 0:02:50]} 4... Nc6 {[%clk 0:02:58.8]} 5. e3 {[%clk 0:02:45.1]}
5... e5 {[%clk 0:02:56.6]} 6. d5 {[%clk 0:02:42.9]} 6... Ne7 {[%clk 0:02:56]} 7.
a3 {[%clk 0:02:39]} 7... Bxc3+ {[%clk 0:02:55.2]} 8. Qxc3 {[%clk 0:02:39.2]}
8... d6 {[%clk 0:02:55.5]} 9. f3 {[%clk 0:02:35.9]} 9... O-O {[%clk 0:02:54]}
10. Ne2 {[%clk 0:02:35.8]} 10... Ne8 {[%clk 0:02:49.8]} 11. e4 {[%clk
0:02:35.3]} 11... f5 {[%clk 0:02:49.8]} 12. Ng3 {[%clk 0:02:34.7]} 12... fxe4
{[%clk 0:02:23.6]} 13. Nxe4 {[%clk 0:02:33.2]} 13... Nf5 {[%clk 0:02:22.5]} 14.
Bg5 {[%clk 0:02:29.5]} 14... Qd7 {[%clk 0:02:22.3]} 15. Bd3 {[%clk 0:02:25.8]}
15... h6 {[%clk 0:02:17.1]} 16. Bd2 {[%clk 0:02:23.7]} 16... Qf7 {[%clk
0:02:12]} 17. O-O {[%clk 0:02:22.5]} 17... Nf6 {[%clk 0:02:08.8]} 18. Nxf6+
{[%clk 0:02:17.5]} 18... Qxf6 {[%clk 0:02:09.7]} 19. Bxf5 {[%clk 0:02:11.5]}
19... Bxf5 {[%clk 0:02:10.6]} 20. b4 {[%clk 0:02:09.7]} 20... Qg6 {[%clk
0:02:06.8]} 21. Rf2 {[%clk 0:02:05.3]} 21... e4 {[%clk 0:02:00.6]} 22. c5 {[%clk
0:01:57.2]} 22... exf3 {[%clk 0:01:59.3]} 23. Rxf3 {[%clk 0:01:56.7]} 23... Be4
{[%clk 0:01:59.4]} 24. Rg3 {[%clk 0:01:55.1]} 24... Qf6 {[%clk 0:01:53.1]} 25.
Qxf6 {[%clk 0:01:44.4]} 25... Rxf6 {[%clk 0:01:54]} 26. Bc3 {[%clk 0:01:41.1]}
26... Rg6 {[%clk 0:01:48.8]} 27. Rxg6 {[%clk 0:01:41.1]} 27... Bxg6 {[%clk
0:01:49.7]} 28. cxd6 {[%clk 0:01:36.7]} 28... cxd6 {[%clk 0:01:50.6]} 29. Re1
{[%clk 0:01:36.2]} 29... Bf7 {[%clk 0:01:49.8]} 30. Re7 {[%clk 0:01:34.7]} 30...
Rc8 {[%clk 0:01:39.1]} 31. Bd4 {[%clk 0:01:33.9]} 31... Rc4 {[%clk 0:01:36]} 32.
Bxa7 {[%clk 0:01:28]} 32... Bxd5 {[%clk 0:01:35.6]} 33. Re2 {[%clk 0:01:11.4]}
33... Kf7 {[%clk 0:01:26.9]} 34. Rd2 {[%clk 0:01:08.1]} 34... Ke6 {[%clk
0:01:26.9]} 35. Bd4 {[%clk 0:01:07.9]} 35... g5 {[%clk 0:01:16.2]} 36. Bg7
{[%clk 0:01:06.8]} 36... h5 {[%clk 0:01:14.8]} 37. Re2+ {[%clk 0:01:01.8]} 37...
Be4 {[%clk 0:01:14.8]} 38. Rd2 {[%clk 0:00:51.9]} 38... d5 {[%clk 0:01:09.5]}
39. Bh6 {[%clk 0:00:49.7]} 39... g4 {[%clk 0:01:02.7]} 40. Bf8 {[%clk
0:00:40.6]} 40... b5 {[%clk 0:01:01.7]} 41. Kf2 {[%clk 0:00:38.3]} 41... Rc3
{[%clk 0:00:59.8]} 42. Ra2 {[%clk 0:00:27.8]} 42... d4 {[%clk 0:00:56.5]} 43.
Bg7 {[%clk 0:00:25.1]} 43... Kd5 {[%clk 0:00:56.2]} 44. a4 {[%clk 0:00:24.5]}
44... bxa4 {[%clk 0:00:48.2]} 45. Rxa4 {[%clk 0:00:24.5]} 45... Rb3 {[%clk
0:00:48.5]} 46. b5 {[%clk 0:00:20.5]} 46... d3 {[%clk 0:00:48.5]} 47. Rd4+
{[%clk 0:00:19.7]} 47... Kc5 {[%clk 0:00:42.1]} 48. Rxe4 {[%clk 0:00:20]} 48...
d2 {[%clk 0:00:39.8]} 49. Ke2 {[%clk 0:00:19.2]} 49... Rd3 {[%clk 0:00:40]} 50.
Kd1 {[%clk 0:00:17.5]} 50... Kxb5 {[%clk 0:00:39.5]} 51. Re2 {[%clk 0:00:17.7]}
51... g3 {[%clk 0:00:38.1]} 52. h3 {[%clk 0:00:16.9]} 52... Kc4 {[%clk
0:00:36.1]} 53. Rxd2 {[%clk 0:00:17.1]} 53... Rb3 {[%clk 0:00:35.4]} 54. Ke2
{[%clk 0:00:16.8]} 54... Ra3 {[%clk 0:00:34.6]} 55. Be5 {[%clk 0:00:16.8]} 55...
Rb3 {[%clk 0:00:33.6]} 56. Rd4+ {[%clk 0:00:16.9]} 56... Kc5 {[%clk 0:00:33.3]}
57. Rh4 {[%clk 0:00:16.9]} 57... Kd5 {[%clk 0:00:31.5]} 58. Bc7 {[%clk
0:00:13.7]} 58... Rc3 {[%clk 0:00:28.7]} 59. Rxh5+ {[%clk 0:00:13.5]} 59... Ke4
{[%clk 0:00:28.6]} 60. Bb8 {[%clk 0:00:13.3]} 60... Rc2+ {[%clk 0:00:28.5]} 61.
Kd1 {[%clk 0:00:13.5]} 61... Rxg2 {[%clk 0:00:28.5]} 62. Rg5 {[%clk 0:00:13]}
62... Kf3 {[%clk 0:00:27.8]} 63. Rxg3+ {[%clk 0:00:13]} 63... Rxg3 {[%clk
0:00:27.5]} 64. Bxg3 {[%clk 0:00:11.9]} 64... Kxg3 {[%clk 0:00:28.4]} 65. h4
{[%clk 0:00:12.4]} 65... Kxh4 {[%clk 0:00:29.3]} 1/2-1/2

[Event "Early-Titled-Tuesday-Blitz-March-19-2024"]
[Site "Chess.com"]
[Date "2024.03.19"]
[Round "4"]
[White "ImportedItalianMaple"]
[Black "LuisFSiles"]
[Result "0-1"]
[WhiteElo "2518"]
[BlackElo "2291"]
[TimeControl "180+1"]
[EndTime "8:40:31 PDT"]
[Termination "LuisFSiles won on time"]

1. Nf3 {[%clk 0:02:57.4]} 1... Nf6 {[%clk 0:02:59.2]} 2. g3 {[%clk 0:02:57.8]}
2... g6 {[%clk 0:02:59.4]} 3. Bg2 {[%clk 0:02:58.3]} 3... Bg7 {[%clk 0:02:59.8]}
4. O-O {[%clk 0:02:59.1]} 4... O-O {[%clk 0:03:00.1]} 5. d4 {[%clk 0:02:59.8]}
5... d6 {[%clk 0:03:00.2]} 6. c4 {[%clk 0:03:00.2]} 6... c6 {[%clk 0:03:00.8]}
7. Nc3 {[%clk 0:03:00.4]} 7... Qa5 {[%clk 0:03:01.4]} 8. h3 {[%clk 0:02:48.2]}
8... e5 {[%clk 0:03:00.7]} 9. e4 {[%clk 0:02:47.5]} 9... exd4 {[%clk 0:02:58.4]}
10. Nxd4 {[%clk 0:02:48.4]} 10... Qc5 {[%clk 0:02:58.6]} 11. Qd3 {[%clk
0:02:35.8]} 11... Nbd7 {[%clk 0:02:37.3]} 12. Nf3 {[%clk 0:02:24.3]} 12... Ne5
{[%clk 0:02:28.1]} 13. Nxe5 {[%clk 0:02:24.3]} 13... dxe5 {[%clk 0:02:29]} 14.
Be3 {[%clk 0:02:23.6]} 14... Qe7 {[%clk 0:02:10.8]} 15. Rfd1 {[%clk 0:02:04.1]}
15... Be6 {[%clk 0:02:08]} 16. a3 {[%clk 0:01:52.3]} 16... Rfd8 {[%clk
0:01:54.7]} 17. Qe2 {[%clk 0:01:52.5]} 17... Nd7 {[%clk 0:01:51.4]} 18. b4
{[%clk 0:01:51.5]} 18... a5 {[%clk 0:01:48.3]} 19. c5 {[%clk 0:01:22.9]} 19...
axb4 {[%clk 0:01:19]} 20. axb4 {[%clk 0:01:23.8]} 20... Rxa1 {[%clk 0:01:18.5]}
21. Rxa1 {[%clk 0:01:22.5]} 21... b6 {[%clk 0:01:17.8]} 22. Ra7 {[%clk
0:01:10.5]} 22... Qf8 {[%clk 0:01:11]} 23. Na4 {[%clk 0:01:02.6]} 23... bxc5
{[%clk 0:01:06.5]} 24. bxc5 {[%clk 0:01:00.6]} 24... Ra8 {[%clk 0:01:02.6]} 25.
Rxa8 {[%clk 0:00:53.7]} 25... Qxa8 {[%clk 0:01:01.8]} 26. Nb6 {[%clk 0:00:54.2]}
26... Qa1+ {[%clk 0:00:50]} 27. Kh2 {[%clk 0:00:50.5]} 27... Bf8 {[%clk
0:00:43.6]} 28. Nxd7 {[%clk 0:00:41]} 28... Bxd7 {[%clk 0:00:44.5]} 29. Qd2
{[%clk 0:00:41.4]} 29... Be6 {[%clk 0:00:44.9]} 30. Qd8 {[%clk 0:00:41.3]} 30...
Qa6 {[%clk 0:00:32.6]} 31. Bh6 {[%clk 0:00:40.4]} 31... Qc8 {[%clk 0:00:31.5]}
32. Qg5 {[%clk 0:00:26.4]} 32... Bxh6 {[%clk 0:00:29.5]} 33. Qxh6 {[%clk
0:00:27.3]} 33... Qf8 {[%clk 0:00:29.3]} 34. Qc1 {[%clk 0:00:26.9]} 34... Qd8
{[%clk 0:00:26.6]} 35. Qc3 {[%clk 0:00:24.6]} 35... Qd4 {[%clk 0:00:25.8]} 36.
Qxd4 {[%clk 0:00:24.6]} 36... exd4 {[%clk 0:00:26.2]} 37. Bf1 {[%clk 0:00:25]}
37... Bb3 {[%clk 0:00:18.6]} 38. Kg2 {[%clk 0:00:24]} 38... Bc2 {[%clk
0:00:17.6]} 39. Kf3 {[%clk 0:00:23.5]} 39... f6 {[%clk 0:00:17.3]} 40. Ba6
{[%clk 0:00:22.1]} 40... Kf7 {[%clk 0:00:17.4]} 41. Bb7 {[%clk 0:00:22.5]} 41...
Ke6 {[%clk 0:00:16.6]} 42. Bxc6 {[%clk 0:00:22.4]} 42... Ke5 {[%clk 0:00:16.8]}
43. Bd5 {[%clk 0:00:20.9]} 43... f5 {[%clk 0:00:16.1]} 44. Bg8 {[%clk
0:00:16.4]} 44... fxe4+ {[%clk 0:00:16.1]} 45. Ke2 {[%clk 0:00:17.2]} 45... Ba4
{[%clk 0:00:10.9]} 46. Bxh7 {[%clk 0:00:16.4]} 46... Be8 {[%clk 0:00:10.8]} 47.
Bg8 {[%clk 0:00:15.9]} 47... Bc6 {[%clk 0:00:10.3]} 48. h4 {[%clk 0:00:15.3]}
48... Bd5 {[%clk 0:00:09.7]} 49. g4 {[%clk 0:00:15.3]} 49... Bxg8 {[%clk
0:00:09.6]} 50. c6 {[%clk 0:00:13.2]} 50... Kd6 {[%clk 0:00:09.5]} 51. h5 {[%clk
0:00:14.1]} 51... gxh5 {[%clk 0:00:09.3]} 52. gxh5 {[%clk 0:00:15]} 52... Kxc6
{[%clk 0:00:09.6]} 0-1

[Event "Early-Titled-Tuesday-Blitz-March-19-2024"]
[Site "Chess.com"]
[Date "2024.03.19"]
[Round "4"]
[White "abelmat"]
[Black "Zampronha1971"]
[Result "0-1"]
[WhiteElo "2070"]
[BlackElo "2312"]
[TimeControl "180+1"]
[EndTime "8:40:32 PDT"]
[Termination "Zampronha1971 won by checkmate"]

1. d4 {[%clk 0:03:00.9]} 1... Nf6 {[%clk 0:02:59.3]} 2. c4 {[%clk 0:03:01.3]}
2... e6 {[%clk 0:02:59.8]} 3. Nf3 {[%clk 0:03:00.8]} 3... b6 {[%clk 0:02:59.5]}
4. Nc3 {[%clk 0:02:58.3]} 4... Bb4 {[%clk 0:02:55.8]} 5. Bd2 {[%clk 0:02:56.7]}
5... Bb7 {[%clk 0:02:55.2]} 6. g3 {[%clk 0:02:56.6]} 6... O-O {[%clk 0:02:51.6]}
7. Bg2 {[%clk 0:02:56.9]} 7... Bxc3 {[%clk 0:02:48.5]} 8. Bxc3 {[%clk
0:02:56.6]} 8... Ne4 {[%clk 0:02:49.4]} 9. Qc2 {[%clk 0:02:55.2]} 9... f5 {[%clk
0:02:46.6]} 10. O-O {[%clk 0:02:55]} 10... d6 {[%clk 0:02:45.6]} 11. Nd2 {[%clk
0:02:54.8]} 11... Nxc3 {[%clk 0:02:39]} 12. Qxc3 {[%clk 0:02:53.7]} 12... Bxg2
{[%clk 0:02:37.3]} 13. Kxg2 {[%clk 0:02:54.6]} 13... Qe7 {[%clk 0:02:33.9]} 14.
Rad1 {[%clk 0:02:46.1]} 14... Nd7 {[%clk 0:02:33.3]} 15. e3 {[%clk 0:02:45.3]}
15... e5 {[%clk 0:02:25.2]} 16. b4 {[%clk 0:02:40.1]} 16... a5 {[%clk
0:02:22.3]} 17. a3 {[%clk 0:02:37.6]} 17... axb4 {[%clk 0:02:21.4]} 18. axb4
{[%clk 0:02:37.7]} 18... f4 {[%clk 0:02:20.9]} 19. exf4 {[%clk 0:02:28.7]} 19...
exf4 {[%clk 0:02:19]} 20. Rde1 {[%clk 0:02:20.5]} 20... Qf7 {[%clk 0:02:19.1]}
21. Nf3 {[%clk 0:02:13.5]} 21... h6 {[%clk 0:02:12.3]} 22. Ra1 {[%clk
0:01:59.7]} 22... Rxa1 {[%clk 0:02:03.6]} 23. Rxa1 {[%clk 0:01:58.6]} 23... Nf6
{[%clk 0:02:04.1]} 24. Ra7 {[%clk 0:01:28.8]} 24... fxg3 {[%clk 0:02:01.3]} 25.
hxg3 {[%clk 0:01:24.6]} 25... Ne4 {[%clk 0:01:16]} 26. Qe3 {[%clk 0:01:13.2]}
26... Re8 {[%clk 0:01:15.8]} 27. Qd3 {[%clk 0:01:02.9]} 27... Re7 {[%clk
0:01:09.2]} 28. Ra8+ {[%clk 0:01:01.2]} 28... Kh7 {[%clk 0:01:01.4]} 29. Ra2
{[%clk 0:00:54.2]} 29... g6 {[%clk 0:00:58.9]} 30. Re2 {[%clk 0:00:51.3]} 30...
Qe8 {[%clk 0:00:52.2]} 31. d5 {[%clk 0:00:46.2]} 31... Nf6 {[%clk 0:00:44.8]}
32. Rxe7+ {[%clk 0:00:44.1]} 32... Qxe7 {[%clk 0:00:45.7]} 33. Nd4 {[%clk
0:00:35.5]} 33... Nd7 {[%clk 0:00:35.9]} 34. Ne6 {[%clk 0:00:32.7]} 34... Ne5
{[%clk 0:00:36]} 35. Qe4 {[%clk 0:00:30.7]} 35... Qf6 {[%clk 0:00:36.3]} 36. f4
{[%clk 0:00:27.9]} 36... Ng4 {[%clk 0:00:35.2]} 37. Qe2 {[%clk 0:00:22.7]} 37...
h5 {[%clk 0:00:23.4]} 38. Nxc7 {[%clk 0:00:21.9]} 38... Qd4 {[%clk 0:00:21]} 39.
Ne6 {[%clk 0:00:20.3]} 39... Qc3 {[%clk 0:00:18.3]} 40. Ng5+ {[%clk 0:00:20.1]}
40... Kh6 {[%clk 0:00:17.6]} 41. Nf7+ {[%clk 0:00:19.5]} 41... Kg7 {[%clk
0:00:17.8]} 42. Nxd6 {[%clk 0:00:19.5]} 42... Qxb4 {[%clk 0:00:15.7]} 43. Qe7+
{[%clk 0:00:18.5]} 43... Kg8 {[%clk 0:00:12.3]} 44. Qf7+ {[%clk 0:00:17.4]}
44... Kh8 {[%clk 0:00:12.5]} 45. Qf8+ {[%clk 0:00:17.2]} 45... Kh7 {[%clk
0:00:12.3]} 46. Qe7+ {[%clk 0:00:14.6]} 46... Kg8 {[%clk 0:00:11.1]} 47. Qf7+
{[%clk 0:00:12.7]} 47... Kh8 {[%clk 0:00:11.2]} 48. Qxg6 {[%clk 0:00:11.7]}
48... Qd2+ {[%clk 0:00:10.4]} 49. Kh1 {[%clk 0:00:08]} 49... Qh2# {[%clk
0:00:10.1]} 0-1

[Event "Early-Titled-Tuesday-Blitz-March-19-2024"]
[Site "Chess.com"]
[Date "2024.03.19"]
[Round "4"]
[White "mertfelin"]
[Black "ExtremeLearner"]
[Result "0-1"]
[WhiteElo "2368"]
[BlackElo "2566"]
[TimeControl "180+1"]
[EndTime "8:40:33 PDT"]
[Termination "ExtremeLearner won on time"]

1. e4 {[%clk 0:03:00.3]} 1... c6 {[%clk 0:02:59.2]} 2. d4 {[%clk 0:03:00]} 2...
d5 {[%clk 0:03:00.1]} 3. e5 {[%clk 0:03:00.6]} 3... Bf5 {[%clk 0:02:59.5]} 4. h4
{[%clk 0:03:00.3]} 4... h5 {[%clk 0:02:57.6]} 5. Bd3 {[%clk 0:03:00.4]} 5... Qd7
{[%clk 0:02:58.2]} 6. Bxf5 {[%clk 0:02:57.5]} 6... Qxf5 {[%clk 0:02:59.1]} 7.
Nf3 {[%clk 0:02:57.1]} 7... Nh6 {[%clk 0:02:52.9]} 8. Be3 {[%clk 0:02:47.3]}
8... Ng4 {[%clk 0:02:52.3]} 9. Qd2 {[%clk 0:02:42.5]} 9... f6 {[%clk 0:02:51.6]}
10. Bf4 {[%clk 0:02:39.6]} 10... Nd7 {[%clk 0:02:44.3]} 11. exf6 {[%clk
0:02:28.7]} 11... gxf6 {[%clk 0:02:41.7]} 12. Nc3 {[%clk 0:02:25.9]} 12... e5
{[%clk 0:02:40.3]} 13. Bg3 {[%clk 0:02:22.9]} 13... O-O-O {[%clk 0:02:33.6]} 14.
O-O {[%clk 0:02:15]} 14... Bh6 {[%clk 0:02:19.4]} 15. Qe2 {[%clk 0:02:15.4]}
15... Rhe8 {[%clk 0:02:10.9]} 16. dxe5 {[%clk 0:02:15.7]} 16... fxe5 {[%clk
0:02:08.5]} 17. Rad1 {[%clk 0:02:11.3]} 17... Bf4 {[%clk 0:02:04.9]} 18. a4
{[%clk 0:02:02.5]} 18... Ndf6 {[%clk 0:01:46.9]} 19. Rde1 {[%clk 0:01:56.5]}
19... e4 {[%clk 0:01:28.5]} 20. Nd4 {[%clk 0:01:53.2]} 20... Qe5 {[%clk
0:01:28.6]} 21. Bxf4 {[%clk 0:01:45.2]} 21... Qxf4 {[%clk 0:01:29.5]} 22. g3
{[%clk 0:01:45.7]} 22... Qe5 {[%clk 0:01:28.7]} 23. Nb3 {[%clk 0:01:35.5]} 23...
d4 {[%clk 0:01:27.8]} 24. Nd1 {[%clk 0:01:31.3]} 24... e3 {[%clk 0:01:24.1]} 25.
fxe3 {[%clk 0:01:30.6]} 25... Qxg3+ {[%clk 0:01:24.1]} 26. Qg2 {[%clk
0:01:31.2]} 26... Qc7 {[%clk 0:01:09.9]} 27. exd4 {[%clk 0:01:26.2]} 27... Rxe1
{[%clk 0:01:03.1]} 28. Rxe1 {[%clk 0:01:26.3]} 28... Rg8 {[%clk 0:01:03.7]} 29.
Kh1 {[%clk 0:01:11.6]} 29... Qf4 {[%clk 0:00:51.2]} 30. Rf1 {[%clk 0:01:03.4]}
30... Qd6 {[%clk 0:00:37.6]} 31. Nf2 {[%clk 0:00:30]} 31... Kb8 {[%clk
0:00:10.2]} 32. Nxg4 {[%clk 0:00:29.5]} 32... Nxg4 {[%clk 0:00:09.9]} 33. Nc5
{[%clk 0:00:09]} 33... Re8 {[%clk 0:00:10.2]} 34. c3 {[%clk 0:00:07.7]} 34... b6
{[%clk 0:00:10.4]} 35. Nd3 {[%clk 0:00:07.5]} 35... Re3 {[%clk 0:00:09.1]} 36.
Nf4 {[%clk 0:00:07.4]} 36... Qe7 {[%clk 0:00:08.3]} 37. Kg1 {[%clk 0:00:02.5]}
37... Qxh4 {[%clk 0:00:07.4]} 38. Ne2 {[%clk 0:00:02.6]} 38... Rxe2 {[%clk
0:00:07.1]} 39. Qxe2 {[%clk 0:00:02.5]} 39... Qg3+ {[%clk 0:00:07.8]} 40. Qg2
{[%clk 0:00:03.1]} 40... Qe3+ {[%clk 0:00:08.1]} 41. Kh1 {[%clk 0:00:03.8]}
41... Kb7 {[%clk 0:00:07.7]} 42. d5 {[%clk 0:00:02.8]} 42... c5 {[%clk 0:00:06]}
43. d6+ {[%clk 0:00:03.4]} 43... Ka6 {[%clk 0:00:06.6]} 44. d7 {[%clk
0:00:04.1]} 44... Qd3 {[%clk 0:00:07.1]} 45. Qf3 {[%clk 0:00:02.1]} 45... Qxd7
{[%clk 0:00:07]} 46. Qe2+ {[%clk 0:00:02.1]} 46... Kb7 {[%clk 0:00:06.9]} 0-1